bitfinex/quotes_BTCUSD_20230109
["timestamp","ask_amount","ask_price","bid_price","bid_amount"]
[1673272225308,0.84045908,17233.0,17232.0,0.18022519]
[1673272225560,0.84045908,17233.0,17232.0,0.005265]
[1673272225561,0.6673044,17233.0,17232.0,0.005265]
[1673272225806,0.6673044,17233.0,17232.0,0.700139]
[1673272227067,0.84045908,17233.0,17232.0,0.700139]
[1673272227310,0.66730224,17233.0,17232.0,0.700139]
[1673272227559,1.01363233,17233.0,17232.0,0.700139]
[1673272227820,0.66730224,17233.0,17232.0,1.280454]
[1673272228081,0.84045908,17233.0,17232.0,1.280454]
[1673272229311,0.84045908,17233.0,17232.0,0.700139]
[1673272229559,1.62518886,17233.0,17232.0,0.700139]
[1673272229802,1.62518886,17233.0,17232.0,0.405265]
[1673272230045,1.01360212,17233.0,17232.0,0.405265]
[1673272230298,0.84039469,17233.0,17232.0,0.700139]
[1673272230539,0.84039469,17233.0,17232.0,0.98558]
[1673272231026,0.84039469,17233.0,17232.0,1.280454]
[1673272231517,0.84039469,17233.0,17232.0,1.860769]
[1673272232003,1.01352666,17233.0,17232.0,1.860769]
[1673272232252,0.66719657,17233.0,17232.0,1.860769]
[1673272236024,0.40750391,17233.0,17232.0,1.860769]
[1673272238826,0.97220391,17233.0,17232.0,1.860769]
[1673272240820,1.23189657,17233.0,17232.0,1.860769]
[1673272241828,0.97220391,17233.0,17232.0,1.860769]
[1673272242084,1.23189657,17233.0,17232.0,1.860769]
[1673272242335,1.23189657,17233.0,17232.0,1.56581649]
[1673272242834,1.57828885,17233.0,17232.0,1.86069049]
[1673272243332,1.40509469,17233.0,17232.0,1.86069049]
[1673272243824,1.40509469,17233.0,17232.0,1.56581649]
[1673272245085,1.83809765,17233.0,17232.0,1.57431649]
[1673272245348,1.40519756,17233.0,17232.0,1.57431649]
[1673272246336,1.57830212,17233.0,17232.0,1.57431649]
[1673272246587,2.18760925,17233.0,17232.0,0.01368649]
[1673272247581,1.84127916,17233.0,17232.0,0.01368649]
[1673272247848,1.40837907,17233.0,17232.0,0.01368649]
[1673272248096,0.00881408,17231.0,17229.0,0.5]
[1673272248350,0.43304866,17230.0,17229.0,0.5]
[1673272248597,0.43304866,17230.0,17229.0,0.794936]
[1673272249347,0.43304866,17230.0,17229.0,0.800936]
[1673272250352,0.17321946,17230.0,17229.0,0.803436]
[1673272250599,0.78348759,17230.0,17229.0,0.820436]
[1673272250865,0.43704866,17230.0,17229.0,0.820436]
[1673272251115,0.61026813,17230.0,17229.0,0.820436]
[1673272251611,0.78346287,17230.0,17229.0,0.820436]
[1673272251862,0.43699182,17230.0,17229.0,0.820436]
[1673272252929,0.17716262,17230.0,17229.0,0.820436]
[1673272253165,0.17716262,17230.0,17229.0,1.400852]
[1673272253429,0.43699182,17230.0,17229.0,1.400852]
[1673272253682,0.43699182,17230.0,17229.0,1.981268]
[1673272253985,0.004,17230.0,17229.0,1.981268]
[1673272254201,0.17716262,17230.0,17229.0,1.981268]
[1673272254711,0.004,17230.0,17229.0,1.981268]
[1673272257026,0.17716262,17230.0,17229.0,1.981268]
[1673272257273,0.17716262,17230.0,17229.0,1.85562274]
[1673272257518,0.004,17230.0,17229.0,1.85562274]
[1673272259280,0.17716262,17230.0,17229.0,1.85562274]
[1673272260295,0.004,17230.0,17229.0,1.85562274]
[1673272263619,0.17716262,17230.0,17229.0,1.85562274]
[1673272264157,0.43699182,17230.0,17229.0,1.85562274]
[1673272264919,0.42672604,17230.0,17229.0,1.85562274]
[1673272265678,0.16689684,17230.0,17229.0,1.27520674]
[1673272266179,0.42672604,17230.0,17229.0,1.27520674]
[1673272266429,0.16689684,17230.0,17229.0,1.27520674]
[1673272266946,0.42672604,17230.0,17229.0,1.27520674]
[1673272267196,0.42672604,17230.0,17229.0,1.85562274]
[1673272267446,0.16689684,17230.0,17229.0,1.85562274]
[1673272267708,0.26864328,17231.0,17229.0,1.85562274]
[1673272268008,0.26864328,17231.0,17230.0,0.0085]
[1673272268239,0.26864328,17231.0,17230.0,0.303418]
[1673272268478,0.26864328,17231.0,17229.0,1.55218674]
[1673272268479,0.5619,17230.0,17229.0,1.55218674]
[1673272268733,0.5619,17230.0,17229.0,1.53518674]
[1673272268734,0.8217292,17230.0,17229.0,1.53518674]
[1673272268985,0.8217292,17230.0,17229.0,0.38035474]
[1673272269235,0.8217292,17230.0,17229.0,0.66928874]
[1673272269483,1.16816813,17230.0,17229.0,0.37435474]
[1673272269737,1.16816813,17230.0,17229.0,0.47435474]
[1673272269987,1.17216813,17230.0,17229.0,0.49335474]
[1673272270234,1.17216813,17230.0,17229.0,0.78829174]
[1673272270755,1.17216813,17230.0,17229.0,0.50185474]
[1673272271509,1.17204281,17230.0,17229.0,0.50185474]
[1673272271754,0.82560388,17230.0,17229.0,0.50185474]
[1673272272011,0.82560388,17230.0,17229.0,0.79679174]
[1673272272262,0.82560388,17230.0,17229.0,1.95762374]
[1673272272521,0.5659,17230.0,17229.0,1.95762374]
[1673272274826,0.99879174,17230.0,17229.0,1.95762374]
[1673272275083,0.99879174,17230.0,17229.0,0.30185474]
[1673272275345,2.68726671,17230.0,17229.0,0.019]
[1673272275595,1.67011768,17230.0,17229.0,0.019]
[1673272276641,1.67011768,17230.0,17228.0,0.01894388]
[1673272276905,1.32797896,17229.0,17228.0,0.01894388]
[1673272277178,1.03888305,17229.0,17228.0,0.01894388]
[1673272277399,0.60601921,17229.0,17228.0,0.01894388]
[1673272277896,1.03888305,17229.0,17228.0,0.01894388]
[1673272278411,0.79015491,17229.0,17228.0,0.04894388]
[1673272278679,1.33877938,17229.0,17228.0,0.04894388]
[1673272278933,3.05478599,17229.0,17228.0,0.04894388]
[1673272279191,3.05478599,17229.0,17228.0,0.01894388]
[1673272279192,3.87710253,17229.0,17228.0,0.01894388]
[1673272279504,4.45751853,17229.0,17228.0,0.01894388]
[1673272279709,5.24196991,17229.0,17228.0,0.01894388]
[1673272279968,0.4,17228.0,17227.0,0.24451203]
[1673272280220,3.82772285,17228.0,17227.0,0.24451203]
[1673272280469,4.21116409,17228.0,17227.0,0.24451203]
[1673272280747,5.09965294,17228.0,17226.0,0.02987656]
[1673272281014,2.26622173,17227.0,17226.0,0.02987656]
[1673272281254,1.96622173,17227.0,17226.0,0.02987656]
[1673272281508,2.607739,17227.0,17226.0,0.02987656]
[1673272281759,3.29134872,17227.0,17226.0,0.02987656]
[1673272282321,3.94679945,17227.0,17226.0,0.03287656]
[1673272282558,4.52728345,17227.0,17226.0,0.03287656]
[1673272282809,4.00783272,17227.0,17226.0,0.03287656]
[1673272283083,4.10369518,17227.0,17226.0,0.03287656]
[1673272283385,4.46455245,17227.0,17226.0,0.03287656]
[1673272283619,4.02150933,17227.0,17226.0,0.00074069]
[1673272283891,4.13270933,17227.0,17226.0,0.00074069]
[1673272284157,2.97174133,17227.0,17226.0,0.00074069]
[1673272284414,4.49289854,17227.0,17226.0,0.00074069]
[1673272284953,4.13270933,17227.0,17226.0,0.00074069]
[1673272285194,4.65216006,17227.0,17226.0,0.00074069]
[1673272285704,4.13270933,17227.0,17226.0,0.00074069]
[1673272286067,4.88983795,17227.0,17226.0,0.00074069]
[1673272286230,4.65216006,17227.0,17226.0,0.00074069]
[1673272286487,4.85068123,17227.0,17226.0,0.00074069]
[1673272286737,4.43621301,17227.0,17226.0,0.00074069]
[1673272286992,4.95415234,17227.0,17226.0,0.00074069]
[1673272287762,1.52126952,17226.0,17224.0,0.03187037]
[1673272288027,4.14993593,17225.0,17222.0,0.03540652]
[1673272288289,0.431554,17223.0,17220.0,0.03412768]
[1673272288571,0.8159404,17222.0,17220.0,0.03412768]
[1673272288826,1.56548602,17222.0,17220.0,0.03412768]
[1673272289067,1.50043704,17222.0,17220.0,0.03412768]
[1673272289321,2.03811493,17222.0,17220.0,0.02929428]
[1673272289581,2.05093169,17221.0,17216.0,0.0001]
[1673272289846,2.05093169,17221.0,17216.0,0.75588319]
[1673272289847,0.60046589,17220.0,17216.0,0.75588319]
[1673272290085,0.23767789,17219.0,17216.0,1.161754]
[1673272290340,0.23767789,17219.0,17218.0,0.385]
[1673272290588,0.43302876,17221.0,17218.0,0.385]
[1673272291380,0.015,17219.0,17218.0,0.385]
[1673272291630,0.43295666,17221.0,17218.0,0.385]
[1673272291631,1.06898653,17221.0,17218.0,0.385]
[1673272291877,0.56595666,17221.0,17218.0,0.385]
[1673272292131,0.90417489,17221.0,17218.0,0.385]
[1673272292392,0.38471754,17220.0,17218.0,0.385]
[1673272292650,0.38471754,17220.0,17216.0,0.0001]
[1673272292651,1.8798566,17219.0,17216.0,0.0001]
[1673272292924,0.48758795,17216.0,17215.0,0.0001]
[1673272293191,1.47344604,17216.0,17215.0,0.0001]
[1673272293463,1.23576815,17216.0,17215.0,0.0001]
[1673272293788,0.4,17215.0,17211.0,0.0001]
[1673272293973,0.38919454,17215.0,17211.0,0.0001]
[1673272294224,0.78947721,17214.0,17210.0,5.7856419]
[1673272294476,0.23767789,17213.0,17210.0,5.7856419]
[1673272294729,0.23767789,17212.0,17210.0,5.7856419]
[1673272295000,0.23767789,17212.0,17211.0,0.31029]
[1673272295241,0.96794147,17214.0,17211.0,0.31029]
[1673272295242,0.55478279,17214.0,17211.0,0.31029]
[1673272295515,0.78589841,17213.0,17211.0,0.4]
[1673272295773,0.78089841,17213.0,17211.0,0.4]
[1673272296031,0.6376,17212.0,17211.0,0.4]
[1673272296291,0.6376,17212.0,17210.0,5.3277419]
[1673272296292,1.32409868,17212.0,17210.0,5.3277419]
[1673272296577,1.32409868,17212.0,17207.0,1.162365]
[1673272296578,0.38615158,17211.0,17207.0,1.36058549]
[1673272296810,0.6241671,17210.0,17207.0,0.77945849]
[1673272297066,0.23469789,17209.0,17207.0,0.77945849]
[1673272297329,0.23469789,17209.0,17206.0,0.581287]
[1673272297330,0.23767789,17209.0,17206.0,0.581287]
[1673272297594,0.23767789,17209.0,17206.0,0.4001]
[1673272297856,0.23767789,17209.0,17206.0,0.10288051]
[1673272298104,0.23767789,17209.0,17205.0,0.03204581]
[1673272298362,0.23767789,17208.0,17205.0,0.02443836]
[1673272298618,0.23767789,17208.0,17205.0,0.41943836]
[1673272298942,0.62458924,17207.0,17205.0,0.41943836]
[1673272299139,0.38691135,17207.0,17205.0,0.41943836]
[1673272299386,0.47914,17206.0,17205.0,0.01943836]
[1673272299647,6e-05,17206.0,17205.0,0.01943836]
[1673272299901,6e-05,17206.0,17205.0,1.65002455]
[1673272300163,6e-05,17206.0,17205.0,1.63964138]
[1673272300441,6e-05,17206.0,17205.0,1.63911489]
[1673272300935,6e-05,17206.0,17205.0,0.89828889]
[1673272301189,6e-05,17206.0,17205.0,1.29828889]
[1673272301498,6e-05,17206.0,17205.0,0.718922]
[1673272301705,0.03845921,17206.0,17205.0,1.300148]
[1673272301954,0.03845921,17206.0,17205.0,1.84648208]
[1673272302462,0.03845921,17206.0,17205.0,2.18238208]
[1673272302742,0.03845921,17206.0,17205.0,2.36313698]
[1673272303000,0.03845921,17206.0,17205.0,2.18238208]
[1673272303247,0.03845921,17206.0,17205.0,2.48238208]
[1673272303499,0.0489876,17210.0,17205.0,2.48238208]
[1673272303500,0.0489876,17210.0,17205.0,3.2547899]
[1673272303751,0.90910436,17215.0,17209.0,0.3367]
[1673272303999,0.90910436,17215.0,17208.0,0.1685]
[1673272304000,0.04755644,17212.0,17210.0,3.19644208]
[1673272304264,0.47669181,17216.0,17211.0,0.1807549]
[1673272304531,0.47669181,17216.0,17214.0,0.1681]
[1673272304532,0.0492315,17215.0,17214.0,0.1681]
[1673272304782,0.0492315,17215.0,17214.0,1.5106719]
[1673272305065,0.61994178,17215.0,17214.0,1.437023]
[1673272305367,0.61994178,17215.0,17214.0,0.856102]
[1673272305853,0.53031117,17214.0,17212.0,0.580973]
[1673272306106,1.14460041,17213.0,17210.0,0.989543]
[1673272306362,1.14460041,17213.0,17210.0,0.409043]
[1673272306363,1.3822783,17213.0,17210.0,0.409043]
[1673272306626,1.3822783,17213.0,17211.0,0.007]
[1673272306867,1.14460041,17213.0,17209.0,0.581223]
[1673272307116,1.3822783,17213.0,17212.0,0.006]
[1673272307389,1.14460041,17213.0,17210.0,0.981048]
[1673272307660,1.25960041,17213.0,17210.0,1.156848]
[1673272307922,1.14460041,17213.0,17212.0,0.4]
[1673272308219,1.25960041,17213.0,17212.0,0.4]
[1673272309324,1.14460041,17213.0,17212.0,0.73603913]
[1673272309516,1.27960041,17213.0,17212.0,1.89748]
[1673272309755,1.14460041,17213.0,17212.0,2.004525]
[1673272310015,1.27960041,17213.0,17212.0,2.008525]
[1673272310268,1.27960041,17213.0,17212.0,1.260235]
[1673272310521,1.28760041,17213.0,17212.0,1.292235]
[1673272310789,1.14460041,17213.0,17212.0,1.837225]
[1673272311310,1.17260041,17213.0,17212.0,1.842225]
[1673272311846,1.17260041,17213.0,17212.0,2.010425]
[1673272312338,1.17260041,17213.0,17212.0,2.179225]
[1673272312596,1.17260041,17213.0,17212.0,2.348025]
[1673272313123,1.17260041,17213.0,17212.0,2.343025]
[1673272313124,1.14460041,17213.0,17212.0,2.343025]
[1673272313378,1.14460041,17213.0,17212.0,2.348025]
[1673272313622,1.17260041,17213.0,17212.0,2.348025]
[1673272313877,1.14460041,17213.0,17212.0,2.343025]
[1673272314668,1.15860041,17213.0,17212.0,2.676025]
[1673272314920,1.15860041,17213.0,17212.0,2.376025]
[1673272315683,1.15860041,17213.0,17212.0,2.676025]
[1673272315934,1.15860041,17213.0,17212.0,3.257015]
[1673272316193,1.15860041,17213.0,17212.0,2.957015]
[1673272316459,1.15860041,17213.0,17212.0,2.755815]
[1673272316460,1.14460041,17213.0,17212.0,2.755815]
[1673272317023,1.15860041,17213.0,17212.0,2.207825]
[1673272317238,1.14460041,17213.0,17212.0,2.174825]
[1673272317486,1.15860041,17213.0,17212.0,2.207825]
[1673272318002,1.14460041,17213.0,17212.0,2.174825]
[1673272318295,1.15260041,17213.0,17212.0,2.206825]
[1673272319524,1.14460041,17213.0,17212.0,2.174825]
[1673272320039,1.15860041,17213.0,17212.0,2.207825]
[1673272320290,1.14460041,17213.0,17212.0,2.174825]
[1673272320539,1.14460041,17213.0,17212.0,2.755815]
[1673272321052,1.15260041,17213.0,17212.0,2.787815]
[1673272321305,1.14460041,17213.0,17212.0,2.755815]
[1673272321562,1.15860041,17213.0,17212.0,2.788815]
[1673272322336,1.15860041,17213.0,17212.0,3.257615]
[1673272323653,1.15860041,17213.0,17212.0,4.6938659]
[1673272324135,0.04980678,17214.0,17213.0,0.4]
[1673272324403,0.04980678,17214.0,17213.0,2.82412076]
[1673272324766,0.47669181,17216.0,17213.0,4.66185886]
[1673272324946,0.47684181,17216.0,17213.0,6.26185886]
[1673272325181,0.47684181,17216.0,17215.0,0.505]
[1673272325440,0.47684181,17216.0,17215.0,2.82585386]
[1673272325696,0.47684181,17216.0,17215.0,4.84370386]
[1673272326497,0.47684181,17216.0,17215.0,6.33699153]
[1673272326498,0.17756281,17216.0,17215.0,6.33699153]
[1673272326768,0.5,17220.0,17216.0,0.4]
[1673272327022,0.04917947,17219.0,17218.0,0.1677]
[1673272327274,6e-05,17219.0,17218.0,1.20593292]
[1673272327552,6e-05,17219.0,17218.0,1.941902]
[1673272327803,6e-05,17219.0,17218.0,1.773102]
[1673272328642,0.00206,17219.0,17218.0,1.913102]
[1673272328928,0.002,17219.0,17218.0,1.744402]
[1673272329176,0.002,17219.0,17218.0,1.9251569]
[1673272329442,0.002,17219.0,17218.0,2.0925569]
[1673272329700,0.002,17219.0,17218.0,1.911802]
[1673272329987,0.002,17219.0,17218.0,2.33740692]
[1673272330525,0.002,17219.0,17218.0,1.911802]
[1673272331324,0.002,17219.0,17218.0,2.492589]
[1673272332336,0.23967789,17219.0,17218.0,2.492589]
[1673272332640,0.002,17219.0,17218.0,2.492589]
[1673272333662,0.002,17219.0,17218.0,2.493861]
[1673272336257,0.002,17219.0,17218.0,2.793861]
[1673272337063,0.002,17219.0,17218.0,2.493861]
[1673272337891,0.002,17219.0,17218.0,2.326161]
[1673272340917,1.30710792,17219.0,17218.0,0.141272]
[1673272341186,1.06943003,17219.0,17218.0,0.141272]
[1673272341690,1.46943003,17219.0,17218.0,0.141272]
[1673272342212,1.99906603,17219.0,17218.0,0.001272]
[1673272342468,2.34006603,17219.0,17218.0,0.012272]
[1673272342734,2.89669744,17219.0,17218.0,0.001272]
[1673272342993,4.09958738,17219.0,17218.0,0.012272]
[1673272343246,4.09958738,17219.0,17216.0,0.18517156]
[1673272343247,0.01187473,17217.0,17216.0,0.18517156]
[1673272343493,1.59698303,17217.0,17216.0,0.18517156]
[1673272343750,1.57979173,17217.0,17216.0,0.18517156]
[1673272345050,2.16061273,17217.0,17216.0,7.68517156]
[1673272345309,1.79777673,17217.0,17216.0,7.68517156]
[1673272345553,0.17907473,17217.0,17216.0,7.86592646]
[1673272345804,0.17907473,17217.0,17216.0,7.96033756]
[1673272345805,0.01187473,17217.0,17216.0,7.96033756]
[1673272346067,0.01187473,17217.0,17216.0,0.18517156]
[1673272346068,0.14787473,17217.0,17216.0,0.18517156]
[1673272346322,0.01187473,17217.0,17216.0,0.18617156]
[1673272346569,0.14787473,17217.0,17216.0,7.68617156]
[1673272346822,0.14787473,17217.0,17216.0,8.54119256]
[1673272346823,0.01187473,17217.0,17216.0,8.54119256]
[1673272347321,0.09887473,17217.0,17216.0,8.54319256]
[1673272347834,0.09887473,17217.0,17216.0,7.96233756]
[1673272348378,0.01187473,17217.0,17216.0,7.96033756]
[1673272348616,0.03087473,17217.0,17216.0,7.69017156]
[1673272348867,0.03087473,17217.0,17216.0,7.96533756]
[1673272349429,0.03087473,17217.0,17216.0,8.27102656]
[1673272349688,0.03087473,17217.0,17216.0,8.54619256]
[1673272350436,0.03087473,17217.0,17216.0,7.98989256]
[1673272350959,0.03087473,17217.0,17216.0,7.40903756]
[1673272351206,0.03087473,17217.0,17216.0,7.13387156]
[1673272351456,0.03087473,17217.0,17216.0,7.40903756]
[1673272351954,0.03087473,17217.0,17216.0,7.13387156]
[1673272352209,0.03087473,17217.0,17216.0,7.98989256]
[1673272353231,0.03087473,17217.0,17216.0,7.40903756]
[1673272353746,0.03087473,17217.0,17216.0,7.13387156]
[1673272354016,0.03087473,17217.0,17216.0,7.40903756]
[1673272354520,0.03087473,17217.0,17216.0,7.13387156]
[1673272354789,0.03087473,17217.0,17216.0,7.40903756]
[1673272355049,0.24681473,17217.0,17216.0,7.13387156]
[1673272355301,0.03087473,17217.0,17216.0,7.40903756]
[1673272356335,0.03087473,17217.0,17216.0,8.29558156]
[1673272356589,0.03087473,17217.0,17216.0,8.57074756]
[1673272357630,0.03087473,17217.0,17216.0,8.75150246]
[1673272357883,0.03087473,17217.0,17216.0,9.98015195]
[1673272358137,0.03087473,17217.0,17216.0,9.79848305]
[1673272358646,0.03087473,17217.0,17216.0,9.91008305]
[1673272358896,0.03663743,17217.0,17216.0,9.90508305]
[1673272359145,0.05063743,17217.0,17216.0,9.93308305]
[1673272359412,0.05063743,17217.0,17216.0,9.82088305]
[1673272359689,0.03663743,17217.0,17216.0,9.37050256]
[1673272360445,0.05063743,17217.0,17216.0,9.82129174]
[1673272361475,0.05063743,17217.0,17216.0,9.82083419]
[1673272361728,0.05063743,17217.0,17216.0,9.82080903]
[1673272362236,0.05163743,17217.0,17216.0,9.39850256]
[1673272362512,0.05063743,17217.0,17216.0,9.82064106]
[1673272362779,0.05063743,17217.0,17216.0,10.12064106]
[1673272363287,0.05063743,17217.0,17216.0,2.6917695]
[1673272365617,0.05063743,17217.0,17216.0,2.269631]
[1673272368173,0.05063743,17217.0,17216.0,2.69199083]
[1673272368435,0.05163743,17217.0,17216.0,2.99199083]
[1673272368691,0.05063743,17217.0,17216.0,2.69199083]
[1673272368921,0.05063743,17217.0,17216.0,2.99199083]
[1673272369196,0.05063743,17217.0,17216.0,2.69199083]
[1673272369453,0.05063743,17217.0,17216.0,2.99199083]
[1673272370206,0.05063743,17217.0,17216.0,2.269631]
[1673272370706,0.05063743,17217.0,17216.0,2.045731]
[1673272375528,0.05051844,17217.0,17216.0,2.69292576]
[1673272376531,0.05051844,17217.0,17216.0,2.69281647]
[1673272377299,0.05051844,17217.0,17216.0,2.99281647]
[1673272377802,0.05051844,17217.0,17216.0,3.10531647]
[1673272378306,0.05051844,17217.0,17216.0,2.80491959]
[1673272379298,0.05051844,17217.0,17216.0,3.10491959]
[1673272379512,0.05051844,17217.0,17216.0,2.80491959]
[1673272379969,0.05051844,17217.0,17216.0,3.10491959]
[1673272381994,0.05051844,17217.0,17216.0,3.96654522]
[1673272382234,0.05051844,17217.0,17216.0,3.96653195]
[1673272382476,0.05051844,17217.0,17216.0,3.96653271]
[1673272383002,0.05051844,17217.0,17216.0,3.53829103]
[1673272383260,0.05051844,17217.0,17216.0,2.97754515]
[1673272383999,0.05051844,17217.0,17216.0,3.27754515]
[1673272384507,0.05051844,17217.0,17216.0,2.86504515]
[1673272384996,0.05051844,17217.0,17216.0,2.73926487]
[1673272385493,0.05051844,17217.0,17216.0,2.73841839]
[1673272385738,0.05051844,17217.0,17216.0,2.14538044]
[1673272387537,0.05051844,17217.0,17216.0,2.56638366]
[1673272387789,0.05051844,17217.0,17216.0,2.73847021]
[1673272388054,0.05051844,17217.0,17216.0,3.73635128]
[1673272388287,0.05051844,17217.0,17216.0,3.73592255]
[1673272388797,0.05051844,17217.0,17216.0,2.57821287]
[1673272389042,0.05051844,17217.0,17216.0,2.31746699]
[1673272389288,0.05051844,17217.0,17216.0,2.73850708]
[1673272389784,0.05051844,17217.0,17216.0,3.73636424]
[1673272390284,0.05051844,17217.0,17216.0,3.90903051]
[1673272390532,0.05051844,17217.0,17216.0,4.3732911]
[1673272390789,0.05051844,17217.0,17216.0,4.14073828]
[1673272391529,0.05051844,17217.0,17216.0,6.01236596]
[1673272392040,6e-05,17220.0,17217.0,0.4]
[1673272392279,6e-05,17220.0,17219.0,0.1117]
[1673272392536,6e-05,17220.0,17219.0,2.529069]
[1673272393282,0.0007483,17221.0,17219.0,2.529069]
[1673272393529,0.0007483,17221.0,17220.0,0.1124]
[1673272393787,0.0007483,17221.0,17220.0,2.129648]
[1673272394541,0.0007483,17221.0,17220.0,2.135648]
[1673272395038,0.0007483,17221.0,17220.0,2.141648]
[1673272395287,0.0007483,17221.0,17220.0,2.129648]
[1673272395788,0.0007483,17221.0,17220.0,2.13018689]
[1673272396567,0.0007483,17221.0,17220.0,2.01778689]
[1673272397325,0.0017483,17221.0,17220.0,2.07878689]
[1673272399325,0.0027483,17221.0,17220.0,2.07878689]
[1673272399588,0.0017483,17221.0,17220.0,2.07878689]
[1673272400827,0.0017483,17221.0,17220.0,2.49843517]
[1673272401318,0.0017483,17221.0,17220.0,2.72333517]
[1673272402604,0.0017483,17221.0,17220.0,3.19722784]
[1673272404640,0.0017483,17221.0,17220.0,3.02333517]
[1673272404893,0.0017483,17221.0,17220.0,3.19722784]
[1673272405883,0.0017483,17221.0,17220.0,3.45806684]
[1673272406129,0.0017483,17221.0,17220.0,3.90015365]
[1673272406379,0.0017483,17221.0,17220.0,3.19722784]
[1673272406878,0.0017483,17221.0,17220.0,3.74841684]
[1673272407125,0.0017483,17221.0,17220.0,4.95126451]
[1673272407396,0.0017483,17221.0,17220.0,5.39323816]
[1673272407894,0.0017483,17221.0,17220.0,5.56713082]
[1673272408140,0.0007483,17221.0,17220.0,5.33211704]
[1673272408383,0.0007483,17221.0,17220.0,5.47111704]
[1673272408623,0.0007483,17221.0,17220.0,5.33211704]
[1673272408874,0.0007483,17221.0,17220.0,3.83891937]
[1673272409124,0.0007483,17221.0,17220.0,2.43743517]
[1673272409375,0.0007483,17221.0,17220.0,2.017248]
[1673272409663,0.0017483,17221.0,17220.0,2.017248]
[1673272409914,0.0007483,17221.0,17220.0,2.017248]
[1673272410169,0.0007483,17221.0,17220.0,2.156248]
[1673272410644,0.0007483,17221.0,17220.0,2.017248]
[1673272411138,0.0007483,17221.0,17220.0,2.136248]
[1673272411381,0.0007483,17221.0,17220.0,2.017248]
[1673272411650,0.0007483,17221.0,17220.0,2.158248]
[1673272412637,0.0007483,17221.0,17220.0,2.017248]
[1673272412883,0.0007483,17221.0,17220.0,2.01778689]
[1673272413429,0.0007483,17221.0,17220.0,2.15778689]
[1673272413708,0.00065465,17221.0,17220.0,2.15778689]
[1673272417227,0.00065465,17221.0,17220.0,2.01778689]
[1673272417488,0.00065465,17221.0,17220.0,2.15678689]
[1673272422108,0.00065465,17221.0,17220.0,2.156248]
[1673272425672,0.00065465,17221.0,17220.0,2.157502]
[1673272427932,0.43611465,17221.0,17220.0,2.157502]
[1673272428182,0.38900203,17221.0,17220.0,1.576782]
[1673272428431,0.38900203,17221.0,17220.0,1.301694]
[1673272428682,0.17306203,17221.0,17220.0,1.301694]
[1673272429447,0.4316731,17221.0,17220.0,0.720974]
[1673272429945,0.17306203,17221.0,17220.0,0.720974]
[1673272430197,0.17306203,17221.0,17220.0,1.120974]
[1673272430198,0.4316731,17221.0,17220.0,1.120974]
[1673272430458,0.4316731,17221.0,17220.0,1.701694]
[1673272430697,0.17306203,17221.0,17220.0,1.976781]
[1673272430939,0.00065465,17221.0,17220.0,1.976781]
[1673272431183,0.00065465,17221.0,17220.0,2.557501]
[1673272431426,0.00065465,17221.0,17220.0,1.976781]
[1673272433729,0.00065465,17221.0,17220.0,2.557501]
[1673272434238,0.00065465,17221.0,17220.0,1.976781]
[1673272435227,0.00065465,17221.0,17220.0,2.557501]
[1673272436541,0.00065465,17221.0,17220.0,2.73127255]
[1673272437051,0.00065465,17221.0,17220.0,3.15041542]
[1673272437325,0.00065465,17221.0,17220.0,3.1504994]
[1673272437578,0.00065465,17221.0,17220.0,2.73127255]
[1673272438087,0.00065465,17221.0,17220.0,3.15041385]
[1673272438584,0.00065465,17221.0,17220.0,3.45041385]
[1673272438828,0.00065465,17221.0,17220.0,3.71125285]
[1673272439074,0.00065465,17221.0,17220.0,4.14594478]
[1673272439328,0.00065465,17221.0,17220.0,2.73127255]
[1673272439827,0.00065465,17221.0,17220.0,2.55803989]
[1673272442623,0.00065465,17221.0,17220.0,3.33181144]
[1673272443877,0.00065465,17221.0,17220.0,4.31214476]
[1673272444132,0.00065465,17221.0,17220.0,4.74730552]
[1673272444376,0.0005943,17221.0,17220.0,5.09509085]
[1673272444872,0.0005943,17221.0,17220.0,5.09529913]
[1673272445142,0.0005943,17221.0,17220.0,5.09529916]
[1673272445382,0.39616337,17225.0,17221.0,0.4]
[1673272445703,0.17240738,17224.0,17222.0,1.436335]
[1673272445897,0.17240738,17224.0,17222.0,1.741942]
[1673272446148,0.17240738,17224.0,17223.0,0.275029]
[1673272446396,0.17240738,17224.0,17223.0,1.836265]
[1673272446646,0.17240738,17224.0,17223.0,1.836263]
[1673272446884,0.17240738,17224.0,17223.0,1.561236]
[1673272447128,0.39616337,17225.0,17223.0,1.561236]
[1673272447375,0.74097813,17225.0,17223.0,1.561236]
[1673272447623,0.39616337,17225.0,17224.0,0.4]
[1673272447874,0.74097813,17225.0,17224.0,0.580585]
[1673272448125,1.19292525,17225.0,17223.0,0.980618]
[1673272448386,0.51804897,17224.0,17223.0,0.980618]
[1673272448640,0.34481476,17224.0,17223.0,0.984618]
[1673272448884,0.17326769,17224.0,17223.0,0.980618]
[1673272449133,0.34481476,17224.0,17223.0,0.980618]
[1673272449632,0.34481476,17224.0,17222.0,1.161256]
[1673272449933,0.17326024,17223.0,17222.0,1.161256]
[1673272450161,0.17326024,17223.0,17222.0,0.58063]
[1673272450673,0.34481476,17223.0,17222.0,0.58063]
[1673272451162,0.34481476,17223.0,17222.0,0.62663]
[1673272451408,0.34481476,17223.0,17222.0,0.62473]
[1673272451898,0.34481476,17223.0,17222.0,0.57873]
[1673272452153,0.34481476,17223.0,17222.0,0.58273]
[1673272452406,0.34481476,17223.0,17221.0,1.61060912]
[1673272452659,0.34481476,17223.0,17222.0,0.004]
[1673272454180,0.60468805,17223.0,17222.0,0.004]
[1673272454922,0.60468805,17223.0,17221.0,1.61460012]
[1673272455168,0.1732414,17222.0,17221.0,1.61060012]
[1673272455413,0.43311469,17223.0,17221.0,1.61060012]
[1673272455662,0.43311469,17223.0,17222.0,0.279042]
[1673272455914,0.43311469,17223.0,17222.0,0.004]
[1673272456169,0.43311469,17223.0,17221.0,1.561326]
[1673272456665,0.43311469,17223.0,17222.0,0.275047]
[1673272456911,0.43311469,17223.0,17221.0,1.561326]
[1673272457399,0.77792945,17223.0,17222.0,0.275047]
[1673272457644,0.43311469,17223.0,17221.0,0.980661]
[1673272457924,0.43311469,17223.0,17222.0,0.004]
[1673272458172,0.43311469,17223.0,17222.0,0.275047]
[1673272458420,0.1732414,17223.0,17221.0,1.561332]
[1673272458668,0.43311469,17224.0,17222.0,0.275047]
[1673272458915,0.60468805,17224.0,17223.0,0.4]
[1673272459417,0.55468805,17224.0,17223.0,0.4]
[1673272460923,0.55468805,17224.0,17223.0,0.989618]
[1673272460924,0.38310782,17224.0,17223.0,0.989618]
[1673272461178,0.17323453,17224.0,17223.0,1.264647]
[1673272461426,0.17323453,17224.0,17223.0,1.845265]